[Event "*** SCC Grand Prix: Titled Tuesday Blitz"]
[Site "Chess.com"]
[Date "2020.07.21"]
[Round "10"]
[White "awesomevishesh"]
[Black "Kavyev_Ruslan"]
[Result "0-1"]
[WhiteElo "2340"]
[BlackElo "2432"]
[TimeControl "180+1"]
[EndTime "11:58:52 PDT"]
[Termination "Kavyev_Ruslan won on time"]

1. e4 {[%clk 0:03:00.9]} 1... c5 {[%clk 0:02:58.4]} 2. Nf3 {[%clk 0:02:58.5]}
2... d6 {[%clk 0:02:57.1]} 3. Bb5+ {[%clk 0:02:58]} 3... Nd7 {[%clk 0:02:57]} 4.
O-O {[%clk 0:02:57.7]} 4... a6 {[%clk 0:02:57.7]} 5. Bd3 {[%clk 0:02:55]} 5...
Ngf6 {[%clk 0:02:57]} 6. Re1 {[%clk 0:02:54.9]} 6... b5 {[%clk 0:02:56.7]} 7. c4
{[%clk 0:02:51.6]} 7... b4 {[%clk 0:02:55.2]} 8. a3 {[%clk 0:02:50.4]} 8... Bb7
{[%clk 0:02:55.7]} 9. axb4 {[%clk 0:02:32.2]} 9... cxb4 {[%clk 0:02:56.6]} 10.
Bc2 {[%clk 0:02:31.8]} 10... e5 {[%clk 0:02:56.5]} 11. d4 {[%clk 0:02:29]} 11...
Be7 {[%clk 0:02:56.7]} 12. b3 {[%clk 0:02:12.9]} 12... O-O {[%clk 0:02:55.9]}
13. Nbd2 {[%clk 0:02:09.3]} 13... a5 {[%clk 0:02:40]} 14. Bb2 {[%clk 0:02:04.5]}
14... Qc7 {[%clk 0:02:35.5]} 15. Nf1 {[%clk 0:01:59.9]} 15... Rfe8 {[%clk
0:02:35.6]} 16. N3d2 {[%clk 0:00:44.1]} 16... Bf8 {[%clk 0:02:28.8]} 17. Ne3
{[%clk 0:00:32.2]} 17... exd4 {[%clk 0:02:27.1]} 18. Nf5 {[%clk 0:00:17.1]}
18... Nc5 {[%clk 0:02:23.4]} 19. Bxd4 {[%clk 0:00:15.7]} 19... Qd8 {[%clk
0:01:26.6]} 20. Qf3 {[%clk 0:00:14.8]} 20... Ncd7 {[%clk 0:01:10.7]} 21. Qf4
{[%clk 0:00:07]} 21... Ne5 {[%clk 0:01:07.8]} 22. h3 {[%clk 0:00:04.8]} 22... g6
{[%clk 0:01:07.8]} 23. Nh6+ {[%clk 0:00:04.2]} 23... Kg7 {[%clk 0:01:07.8]} 24.
Re3 {[%clk 0:00:01.7]} 24... Qc7 {[%clk 0:01:03.2]} 25. Rg3 {[%clk 0:00:01.3]}
25... Nh5 {[%clk 0:01:02.6]} 26. Nf5+ {[%clk 0:00:02]} 26... Kh8 {[%clk
0:01:01.6]} 27. Qg5 {[%clk 0:00:02.4]} 27... f6 {[%clk 0:00:58.5]} 28. Qg4
{[%clk 0:00:02]} 28... Nxg3 {[%clk 0:00:56.9]} 0-1

[Event "*** SCC Grand Prix: Titled Tuesday Blitz"]
[Site "Chess.com"]
[Date "2020.07.21"]
[Round "10"]
[White "Jaka_Brilej"]
[Black "iaraldinho"]
[Result "1-0"]
[WhiteElo "2378"]
[BlackElo "2508"]
[TimeControl "180+1"]
[EndTime "11:58:53 PDT"]
[Termination "Jaka_Brilej won by resignation"]

1. e4 {[%clk 0:03:00.9]} 1... c5 {[%clk 0:02:59.6]} 2. Nf3 {[%clk 0:02:59.9]}
2... a6 {[%clk 0:02:59.9]} 3. d4 {[%clk 0:02:59]} 3... cxd4 {[%clk 0:03:00.8]}
4. Nxd4 {[%clk 0:02:59.6]} 4... Nf6 {[%clk 0:03:01.1]} 5. Nc3 {[%clk 0:02:59.2]}
5... e5 {[%clk 0:03:01.2]} 6. Nb3 {[%clk 0:02:55.4]} 6... Nc6 {[%clk 0:03:00.3]}
7. Be3 {[%clk 0:02:49.6]} 7... Be7 {[%clk 0:03:01.2]} 8. Qd2 {[%clk 0:02:46.5]}
8... O-O {[%clk 0:03:02.1]} 9. f3 {[%clk 0:02:46.4]} 9... d6 {[%clk 0:03:03]}
10. O-O-O {[%clk 0:02:45.8]} 10... Be6 {[%clk 0:03:03.9]} 11. g4 {[%clk
0:02:45.7]} 11... Rc8 {[%clk 0:03:03.6]} 12. g5 {[%clk 0:02:44.1]} 12... Nh5
{[%clk 0:03:01.3]} 13. Rg1 {[%clk 0:02:43.8]} 13... Nf4 {[%clk 0:03:00.4]} 14.
h4 {[%clk 0:02:40.1]} 14... Nb4 {[%clk 0:02:59.4]} 15. Kb1 {[%clk 0:02:34.6]}
15... d5 {[%clk 0:02:43.6]} 16. Bxf4 {[%clk 0:02:34.1]} 16... exf4 {[%clk
0:02:44.5]} 17. exd5 {[%clk 0:02:13.9]} 17... Bf5 {[%clk 0:02:14]} 18. Nd4
{[%clk 0:02:13.2]} 18... Qb6 {[%clk 0:02:09.3]} 19. Nxf5 {[%clk 0:02:05]} 19...
Bc5 {[%clk 0:02:09.3]} 20. Rg2 {[%clk 0:01:56.9]} 20... Qg6 {[%clk 0:02:06.5]}
21. Bd3 {[%clk 0:01:51.8]} 21... Nxd3 {[%clk 0:02:06.5]} 22. Qxd3 {[%clk
0:01:51.6]} 22... b5 {[%clk 0:02:07]} 23. Nd4 {[%clk 0:01:26.2]} 23... Qh5
{[%clk 0:01:58.6]} 24. Ne4 {[%clk 0:01:25.9]} 24... Bxd4 {[%clk 0:01:55.7]} 25.
Qxd4 {[%clk 0:01:25.5]} 25... Qxh4 {[%clk 0:01:55.8]} 26. d6 {[%clk 0:01:22.9]}
26... Qh3 {[%clk 0:01:54.4]} 27. d7 {[%clk 0:01:16.9]} 27... Rcd8 {[%clk
0:01:31.5]} 28. Rf2 {[%clk 0:01:14.7]} 28... Qe6 {[%clk 0:01:21.4]} 29. Rfd2
{[%clk 0:01:02.7]} 29... Qh3 {[%clk 0:01:11.4]} 30. Qf2 {[%clk 0:00:48.3]} 30...
Qf5 {[%clk 0:01:07.8]} 31. Nc5 {[%clk 0:00:47.9]} 31... Qxg5 {[%clk 0:01:04]}
32. Nb7 {[%clk 0:00:47.3]} 32... Rb8 {[%clk 0:01:03.4]} 33. d8=Q {[%clk
0:00:45.9]} 33... Rbxd8 {[%clk 0:01:03.3]} 34. Rxd8 {[%clk 0:00:45.4]} 34... g6
{[%clk 0:00:59.9]} 35. Qc5 {[%clk 0:00:39]} 35... Rxd8 {[%clk 0:00:46.9]} 36.
Rxd8+ {[%clk 0:00:37.6]} 36... Kg7 {[%clk 0:00:47.4]} 37. Qxg5 {[%clk
0:00:37.1]} 1-0

[Event "*** SCC Grand Prix: Titled Tuesday Blitz"]
[Site "Chess.com"]
[Date "2020.07.21"]
[Round "10"]
[White "WeAintSurePal"]
[Black "Supernotar"]
[Result "0-1"]
[WhiteElo "2321"]
[BlackElo "2709"]
[TimeControl "180+1"]
[EndTime "11:58:54 PDT"]
[Termination "Supernotar won by resignation"]

1. d4 {[%clk 0:03:00.9]} 1... d5 {[%clk 0:02:59.6]} 2. Bf4 {[%clk 0:03:00.4]}
2... Nf6 {[%clk 0:02:59.3]} 3. e3 {[%clk 0:03:00.5]} 3... e6 {[%clk 0:02:59.6]}
4. Nf3 {[%clk 0:02:57]} 4... Bd6 {[%clk 0:02:59.5]} 5. c3 {[%clk 0:02:57]} 5...
c5 {[%clk 0:02:59.6]} 6. Nbd2 {[%clk 0:02:54.3]} 6... Qc7 {[%clk 0:02:59.3]} 7.
dxc5 {[%clk 0:02:49.2]} 7... Qxc5 {[%clk 0:02:57.9]} 8. Ne5 {[%clk 0:02:37.5]}
8... Nbd7 {[%clk 0:02:54.8]} 9. Ndf3 {[%clk 0:02:30.7]} 9... Qc7 {[%clk
0:02:50.3]} 10. Bb5 {[%clk 0:02:24.6]} 10... O-O {[%clk 0:02:47.6]} 11. Nxd7
{[%clk 0:02:19]} 11... Bxd7 {[%clk 0:02:43.8]} 12. Bxd7 {[%clk 0:02:12.4]} 12...
Qxd7 {[%clk 0:02:40.6]} 13. O-O {[%clk 0:02:07.9]} 13... Rac8 {[%clk 0:02:36.4]}
14. Re1 {[%clk 0:01:53.6]} 14... Ne4 {[%clk 0:02:35.9]} 15. Bxd6 {[%clk
0:01:50]} 15... Qxd6 {[%clk 0:02:35.8]} 16. Nd2 {[%clk 0:01:50.5]} 16... Nc5
{[%clk 0:02:31.6]} 17. e4 {[%clk 0:01:46.7]} 17... Nd3 {[%clk 0:02:29.6]} 18.
Re3 {[%clk 0:01:37.4]} 18... Nxb2 {[%clk 0:02:29.2]} 19. Qg4 {[%clk 0:01:13.7]}
19... Nc4 {[%clk 0:02:18.2]} 20. Rg3 {[%clk 0:01:12.7]} 20... g6 {[%clk
0:02:14.4]} 21. Nf3 {[%clk 0:01:08.8]} 21... Rfd8 {[%clk 0:02:09]} 22. Ng5
{[%clk 0:01:04.1]} 22... dxe4 {[%clk 0:02:02]} 23. Nxe4 {[%clk 0:00:55.1]} 23...
Qe5 {[%clk 0:01:53.2]} 24. Rh3 {[%clk 0:00:42]} 24... Kg7 {[%clk 0:01:21.8]} 25.
Re1 {[%clk 0:00:20.3]} 25... f5 {[%clk 0:00:59.4]} 26. Qh4 {[%clk 0:00:20]}
26... Qxe4 {[%clk 0:00:58]} 27. Qe7+ {[%clk 0:00:18.6]} 27... Kg8 {[%clk
0:00:58.5]} 28. Qxh7+ {[%clk 0:00:18.3]} 28... Kf8 {[%clk 0:00:58.9]} 29. Qh8+
{[%clk 0:00:17.5]} 29... Ke7 {[%clk 0:00:56.6]} 30. Rh7+ {[%clk 0:00:16.6]}
30... Kd6 {[%clk 0:00:56.8]} 31. Rd1+ {[%clk 0:00:16.8]} 31... Kc6 {[%clk
0:00:51.9]} 0-1

[Event "*** SCC Grand Prix: Titled Tuesday Blitz"]
[Site "Chess.com"]
[Date "2020.07.21"]
[Round "10"]
[White "vladgoncharov"]
[Black "Joseacorrea"]
[Result "1-0"]
[WhiteElo "2380"]
[BlackElo "2010"]
[TimeControl "180+1"]
[EndTime "11:58:56 PDT"]
[Termination "vladgoncharov won on time"]

1. d4 {[%clk 0:01:40.2]} 1... e6 {[%clk 0:02:59]} 2. c4 {[%clk 0:01:41.1]} 2...
d5 {[%clk 0:02:58.6]} 3. Nf3 {[%clk 0:01:42]} 3... f5 {[%clk 0:02:58.1]} 4. g3
{[%clk 0:01:42.9]} 4... c6 {[%clk 0:02:57.5]} 5. Bg2 {[%clk 0:01:43.8]} 5... Bd6
{[%clk 0:02:57.3]} 6. O-O {[%clk 0:01:44.7]} 6... Nf6 {[%clk 0:02:57]} 7. b3
{[%clk 0:01:45.6]} 7... Qe7 {[%clk 0:02:55.3]} 8. Bb2 {[%clk 0:01:46.5]} 8...
O-O {[%clk 0:02:54.9]} 9. Qc1 {[%clk 0:01:45.9]} 9... b6 {[%clk 0:02:47.8]} 10.
Ba3 {[%clk 0:01:46.1]} 10... c5 {[%clk 0:02:41.4]} 11. dxc5 {[%clk 0:01:44.9]}
11... bxc5 {[%clk 0:02:40.1]} 12. cxd5 {[%clk 0:01:44.8]} 12... exd5 {[%clk
0:02:39.9]} 13. Nc3 {[%clk 0:01:39.8]} 13... a6 {[%clk 0:02:28.3]} 14. Rd1
{[%clk 0:01:36.8]} 14... Bb7 {[%clk 0:02:25.6]} 15. e3 {[%clk 0:01:35.7]} 15...
Nbd7 {[%clk 0:02:23.2]} 16. Ne1 {[%clk 0:01:34.8]} 16... Nb6 {[%clk 0:02:14.9]}
17. Nd3 {[%clk 0:01:33.1]} 17... Ne4 {[%clk 0:02:03.5]} 18. Rb1 {[%clk 0:01:30]}
18... Rae8 {[%clk 0:01:56.6]} 19. Ne2 {[%clk 0:01:19.3]} 19... Nd7 {[%clk
0:01:31.9]} 20. Ndf4 {[%clk 0:01:17.8]} 20... Nb6 {[%clk 0:01:20.9]} 21. Nc3
{[%clk 0:01:12.9]} 21... g5 {[%clk 0:00:52]} 22. Nfxd5 {[%clk 0:01:10.9]} 22...
Nxd5 {[%clk 0:00:51.8]} 23. Nxd5 {[%clk 0:01:09]} 23... Qe5 {[%clk 0:00:47.5]}
24. Nb6 {[%clk 0:01:06.6]} 24... Nc3 {[%clk 0:00:34.8]} 25. Nc4 {[%clk
0:00:57.4]} 25... Ne2+ {[%clk 0:00:31.9]} 26. Kf1 {[%clk 0:00:57.4]} 26... Bxg2+
{[%clk 0:00:24.1]} 27. Kxe2 {[%clk 0:00:55.4]} 27... Qe4 {[%clk 0:00:16.3]} 28.
Nxd6 {[%clk 0:00:51.4]} 28... Qf3+ {[%clk 0:00:10.7]} 29. Ke1 {[%clk 0:00:51.2]}
1-0

[Event "*** SCC Grand Prix: Titled Tuesday Blitz"]
[Site "Chess.com"]
[Date "2020.07.21"]
[Round "10"]
[White "chessplayer9919"]
[Black "axvesik"]
[Result "1-0"]
[WhiteElo "2617"]
[BlackElo "2470"]
[TimeControl "180+1"]
[EndTime "11:59:05 PDT"]
[Termination "chessplayer9919 won by resignation"]

1. d4 {[%clk 0:02:58.6]} 1... Nf6 {[%clk 0:02:56.1]} 2. c4 {[%clk 0:02:55.1]}
2... e6 {[%clk 0:02:51.2]} 3. Nf3 {[%clk 0:02:50.6]} 3... d5 {[%clk 0:02:49.7]}
4. g3 {[%clk 0:02:49.6]} 4... dxc4 {[%clk 0:02:44.6]} 5. Bg2 {[%clk 0:02:48.6]}
5... a6 {[%clk 0:02:43.9]} 6. O-O {[%clk 0:02:43.1]} 6... Nc6 {[%clk 0:02:42.1]}
7. Nc3 {[%clk 0:02:40.8]} 7... Rb8 {[%clk 0:02:39.1]} 8. e4 {[%clk 0:02:35]}
8... Be7 {[%clk 0:02:32]} 9. a4 {[%clk 0:02:32.3]} 9... Na5 {[%clk 0:02:26.2]}
10. Bg5 {[%clk 0:02:24.4]} 10... O-O {[%clk 0:02:22.7]} 11. e5 {[%clk
0:02:20.3]} 11... Nd5 {[%clk 0:02:18]} 12. Bxe7 {[%clk 0:02:16.3]} 12... Qxe7
{[%clk 0:02:10.7]} 13. Ne4 {[%clk 0:02:13.6]} 13... Rd8 {[%clk 0:02:02.1]} 14.
Qe2 {[%clk 0:02:02.9]} 14... Nb3 {[%clk 0:01:54.8]} 15. Rad1 {[%clk 0:02:00]}
15... b5 {[%clk 0:01:54.7]} 16. axb5 {[%clk 0:01:56.1]} 16... axb5 {[%clk
0:01:54.8]} 17. h4 {[%clk 0:01:54]} 17... Bb7 {[%clk 0:01:52.9]} 18. Nfg5 {[%clk
0:01:51.8]} 18... h6 {[%clk 0:01:40.9]} 19. Qh5 {[%clk 0:01:40.9]} 19... Ra8
{[%clk 0:01:17.5]} 20. Bh3 {[%clk 0:01:07.6]} 20... Ra2 {[%clk 0:00:39.3]} 21.
Bxe6 {[%clk 0:00:42]} 21... fxe6 {[%clk 0:00:38.5]} 22. Qg6 {[%clk 0:00:38.9]}
22... hxg5 {[%clk 0:00:38.7]} 23. Nxg5 {[%clk 0:00:39.8]} 23... Nf6 {[%clk
0:00:38.9]} 24. exf6 {[%clk 0:00:39.5]} 24... Qxf6 {[%clk 0:00:39.1]} 25. Qh7+
{[%clk 0:00:39.2]} 25... Kf8 {[%clk 0:00:39.4]} 26. Qb1 {[%clk 0:00:26.9]} 26...
Qf5 {[%clk 0:00:20.9]} 27. Qxa2 {[%clk 0:00:20.8]} 27... Qh3 {[%clk 0:00:20.9]}
28. Nxh3 {[%clk 0:00:20.6]} 1-0

[Event "*** SCC Grand Prix: Titled Tuesday Blitz"]
[Site "Chess.com"]
[Date "2020.07.21"]
[Round "10"]
[White "margarita_2703"]
[Black "Ausbildung"]
[Result "0-1"]
[WhiteElo "2378"]
[BlackElo "2264"]
[TimeControl "180+1"]
[EndTime "11:59:05 PDT"]
[Termination "Ausbildung won by checkmate"]

1. Nf3 {[%clk 0:03:00.9]} 1... g6 {[%clk 0:02:58.4]} 2. c4 {[%clk 0:02:59.1]}
2... Bg7 {[%clk 0:02:58.6]} 3. Nc3 {[%clk 0:02:57.2]} 3... d6 {[%clk 0:02:58.9]}
4. d4 {[%clk 0:02:52.6]} 4... Nc6 {[%clk 0:02:55.9]} 5. e4 {[%clk 0:02:51.4]}
5... e5 {[%clk 0:02:54.9]} 6. d5 {[%clk 0:02:50.6]} 6... Nd4 {[%clk 0:02:51.9]}
7. Be3 {[%clk 0:02:50.4]} 7... Nxf3+ {[%clk 0:02:50]} 8. Qxf3 {[%clk 0:02:49.2]}
8... f5 {[%clk 0:02:48.8]} 9. Rd1 {[%clk 0:02:42.4]} 9... Nf6 {[%clk 0:02:47.6]}
10. exf5 {[%clk 0:02:11.6]} 10... gxf5 {[%clk 0:02:46.2]} 11. Bg5 {[%clk
0:02:11.2]} 11... O-O {[%clk 0:02:44.8]} 12. Be2 {[%clk 0:02:07.5]} 12... a6
{[%clk 0:02:43.8]} 13. O-O {[%clk 0:02:04.8]} 13... Bd7 {[%clk 0:02:43.2]} 14.
c5 {[%clk 0:02:00.5]} 14... Rf7 {[%clk 0:02:41.5]} 15. Rfe1 {[%clk 0:01:52.4]}
15... Qf8 {[%clk 0:02:40.4]} 16. cxd6 {[%clk 0:01:45.6]} 16... cxd6 {[%clk
0:02:39.5]} 17. Qh3 {[%clk 0:01:35.1]} 17... Kh8 {[%clk 0:02:35.2]} 18. Qh4
{[%clk 0:01:27.7]} 18... Rc8 {[%clk 0:02:19.8]} 19. Rd3 {[%clk 0:01:22.2]} 19...
Ng8 {[%clk 0:02:11.5]} 20. Bh5 {[%clk 0:01:18.1]} 20... e4 {[%clk 0:01:55.4]}
21. Rh3 {[%clk 0:01:14.6]} 21... h6 {[%clk 0:01:49.8]} 22. Bxf7 {[%clk
0:01:09.2]} 22... Qxf7 {[%clk 0:01:49.1]} 23. Qf4 {[%clk 0:01:04.8]} 23... Qg6
{[%clk 0:01:46.1]} 24. Bh4 {[%clk 0:00:57.3]} 24... Be5 {[%clk 0:01:44.8]} 25.
Qe3 {[%clk 0:00:56.4]} 25... f4 {[%clk 0:01:43.8]} 26. Qxe4 {[%clk 0:00:54.3]}
26... Qxe4 {[%clk 0:01:42.2]} 27. Nxe4 {[%clk 0:00:53.7]} 27... Bxh3 {[%clk
0:01:42.7]} 28. gxh3 {[%clk 0:00:52.6]} 28... Rc2 {[%clk 0:01:41.6]} 29. Rb1
{[%clk 0:00:46.1]} 29... Kg7 {[%clk 0:01:39.5]} 30. Kg2 {[%clk 0:00:42.5]} 30...
Kf7 {[%clk 0:01:34.6]} 31. Kf3 {[%clk 0:00:39.5]} 31... Ne7 {[%clk 0:01:32.6]}
32. Bxe7 {[%clk 0:00:37]} 32... Kxe7 {[%clk 0:01:32.2]} 33. a3 {[%clk
0:00:36.2]} 33... Kf7 {[%clk 0:01:29.8]} 34. h4 {[%clk 0:00:29.5]} 34... Kg6
{[%clk 0:01:29]} 35. Kg4 {[%clk 0:00:27.1]} 35... h5+ {[%clk 0:01:27.9]} 36. Kf3
{[%clk 0:00:26.7]} 36... Kf5 {[%clk 0:01:27.9]} 37. Rg1 {[%clk 0:00:22.2]} 37...
Bf6 {[%clk 0:01:11.6]} 38. Nxd6+ {[%clk 0:00:18.7]} 38... Ke5 {[%clk 0:01:08.9]}
39. Re1+ {[%clk 0:00:18.3]} 39... Kxd5 {[%clk 0:01:06.3]} 40. Ne4 {[%clk
0:00:16.3]} 40... Bd4 {[%clk 0:01:03]} 41. Nc3+ {[%clk 0:00:14.9]} 41... Kc4
{[%clk 0:01:02]} 42. Re4 {[%clk 0:00:13.5]} 42... Rxf2# {[%clk 0:01:01.2]} 0-1

[Event "*** SCC Grand Prix: Titled Tuesday Blitz"]
[Site "Chess.com"]
[Date "2020.07.21"]
[Round "10"]
[White "GMJustin"]
[Black "MVM2008"]
[Result "1-0"]
[WhiteElo "2293"]
[BlackElo "2173"]
[TimeControl "180+1"]
[EndTime "11:59:06 PDT"]
[Termination "GMJustin won by resignation"]

1. d4 {[%clk 0:02:59.9]} 1... Nf6 {[%clk 0:02:58.6]} 2. c4 {[%clk 0:02:59.6]}
2... c5 {[%clk 0:02:58.6]} 3. d5 {[%clk 0:02:58.7]} 3... b5 {[%clk 0:02:58.5]}
4. Qc2 {[%clk 0:02:58.8]} 4... e5 {[%clk 0:02:56.2]} 5. cxb5 {[%clk 0:02:45.2]}
5... a6 {[%clk 0:02:44.1]} 6. e4 {[%clk 0:02:38.9]} 6... axb5 {[%clk 0:02:26.6]}
7. Bxb5 {[%clk 0:02:38.8]} 7... Na6 {[%clk 0:02:24.6]} 8. Nc3 {[%clk 0:02:33.9]}
8... Nb4 {[%clk 0:02:23.7]} 9. Qe2 {[%clk 0:02:33.4]} 9... Qa5 {[%clk
0:02:02.6]} 10. Nf3 {[%clk 0:02:20.4]} 10... Qc7 {[%clk 0:01:43.2]} 11. O-O
{[%clk 0:02:11.1]} 11... Ba6 {[%clk 0:01:41]} 12. a3 {[%clk 0:02:04]} 12... Bxb5
{[%clk 0:01:23.1]} 13. Nxb5 {[%clk 0:02:01.9]} 13... Qb8 {[%clk 0:01:18.9]} 14.
Bg5 {[%clk 0:01:49.1]} 14... Na6 {[%clk 0:01:08.2]} 15. Bxf6 {[%clk 0:01:46.4]}
15... gxf6 {[%clk 0:01:07.4]} 16. Nh4 {[%clk 0:01:40.9]} 16... Nc7 {[%clk
0:01:00.1]} 17. Nxc7+ {[%clk 0:01:39.1]} 17... Qxc7 {[%clk 0:01:01]} 18. Nf5
{[%clk 0:01:39.2]} 18... d6 {[%clk 0:01:00.7]} 19. b4 {[%clk 0:01:31.6]} 19...
c4 {[%clk 0:00:57.6]} 20. Rfc1 {[%clk 0:01:27.2]} 20... Rc8 {[%clk 0:00:49.2]}
21. Rc3 {[%clk 0:01:26.4]} 21... Rg8 {[%clk 0:00:27.5]} 22. Rac1 {[%clk
0:01:18.8]} 22... Rb8 {[%clk 0:00:22.8]} 23. Rxc4 {[%clk 0:01:17]} 23... Qa7
{[%clk 0:00:22.9]} 24. Rc7 {[%clk 0:00:48.5]} 24... Qxa3 {[%clk 0:00:17.5]} 25.
Qb5+ {[%clk 0:00:35.1]} 1-0

[Event "*** SCC Grand Prix: Titled Tuesday Blitz"]
[Site "Chess.com"]
[Date "2020.07.21"]
[Round "10"]
[White "MisiekZielony"]
[Black "felipelobo"]
[Result "1-0"]
[WhiteElo "2235"]
[BlackElo "2107"]
[TimeControl "180+1"]
[EndTime "11:59:08 PDT"]
[Termination "MisiekZielony won by checkmate"]

1. c4 {[%clk 0:03:00]} 1... c5 {[%clk 0:02:57.4]} 2. Nc3 {[%clk 0:02:59.9]} 2...
g6 {[%clk 0:02:57.6]} 3. g3 {[%clk 0:02:59.9]} 3... Bg7 {[%clk 0:02:58]} 4. Bg2
{[%clk 0:02:59.9]} 4... Nf6 {[%clk 0:02:58.5]} 5. e4 {[%clk 0:03:00.1]} 5... O-O
{[%clk 0:02:59]} 6. Nge2 {[%clk 0:03:00.2]} 6... d6 {[%clk 0:02:57.6]} 7. O-O
{[%clk 0:03:00]} 7... Nc6 {[%clk 0:02:57.4]} 8. d3 {[%clk 0:03:00.6]} 8... Qd7
{[%clk 0:02:53.4]} 9. h3 {[%clk 0:02:59.7]} 9... b6 {[%clk 0:02:51.6]} 10. Be3
{[%clk 0:02:58.4]} 10... Bb7 {[%clk 0:02:51.4]} 11. Kh2 {[%clk 0:02:58.3]} 11...
e5 {[%clk 0:02:34.8]} 12. f4 {[%clk 0:02:56.8]} 12... Nd4 {[%clk 0:02:33]} 13.
Qd2 {[%clk 0:02:37.1]} 13... Rae8 {[%clk 0:02:15.2]} 14. Rf2 {[%clk 0:02:25.1]}
14... Nh5 {[%clk 0:02:02.8]} 15. Nd5 {[%clk 0:01:48.9]} 15... Bxd5 {[%clk
0:01:59.1]} 16. cxd5 {[%clk 0:01:39.9]} 16... f5 {[%clk 0:01:49.3]} 17. Raf1
{[%clk 0:01:38.9]} 17... exf4 {[%clk 0:01:19.7]} 18. Nxf4 {[%clk 0:01:37.6]}
18... Nxf4 {[%clk 0:01:18.3]} 19. Bxf4 {[%clk 0:01:17.2]} 19... fxe4 {[%clk
0:01:08.8]} 20. dxe4 {[%clk 0:01:08.1]} 20... Be5 {[%clk 0:01:04.1]} 21. Bh6
{[%clk 0:00:32]} 21... Bg7 {[%clk 0:00:58.1]} 22. Rxf8+ {[%clk 0:00:28.4]} 22...
Rxf8 {[%clk 0:00:57.5]} 23. Rxf8+ {[%clk 0:00:28.6]} 23... Bxf8 {[%clk
0:00:54.1]} 24. Bxf8 {[%clk 0:00:28.8]} 24... Kxf8 {[%clk 0:00:53.3]} 25. Qf4+
{[%clk 0:00:29.5]} 25... Kg7 {[%clk 0:00:50.4]} 26. e5 {[%clk 0:00:29.7]} 26...
dxe5 {[%clk 0:00:31.3]} 27. Qxe5+ {[%clk 0:00:29.4]} 27... Kg8 {[%clk 0:00:30]}
28. d6 {[%clk 0:00:29.3]} 28... Nf5 {[%clk 0:00:27.3]} 29. Bd5+ {[%clk
0:00:28.4]} 29... Kf8 {[%clk 0:00:19.6]} 30. Qh8# {[%clk 0:00:27.3]} 1-0

[Event "*** SCC Grand Prix: Titled Tuesday Blitz"]
[Site "Chess.com"]
[Date "2020.07.21"]
[Round "10"]
[White "ChessAurochs"]
[Black "VerdeNotte"]
[Result "0-1"]
[WhiteElo "2606"]
[BlackElo "2853"]
[TimeControl "180+1"]
[EndTime "11:59:09 PDT"]
[Termination "VerdeNotte won by checkmate"]

1. e4 {[%clk 0:03:00.9]} 1... e5 {[%clk 0:02:58.8]} 2. Nf3 {[%clk 0:03:00.8]}
2... Nc6 {[%clk 0:02:58.7]} 3. Bb5 {[%clk 0:03:01.2]} 3... a6 {[%clk 0:02:57.9]}
4. Ba4 {[%clk 0:03:01.1]} 4... d6 {[%clk 0:02:57.6]} 5. c3 {[%clk 0:03:00.5]}
5... Bd7 {[%clk 0:02:56.6]} 6. d4 {[%clk 0:02:59.7]} 6... g6 {[%clk 0:02:57]} 7.
O-O {[%clk 0:02:59.4]} 7... Bg7 {[%clk 0:02:57.1]} 8. Re1 {[%clk 0:02:58.6]}
8... Nf6 {[%clk 0:02:57.1]} 9. Nbd2 {[%clk 0:02:56]} 9... O-O {[%clk 0:02:54.2]}
10. h3 {[%clk 0:02:56.4]} 10... Nh5 {[%clk 0:02:42.2]} 11. Nf1 {[%clk
0:02:53.6]} 11... Kh8 {[%clk 0:02:38.7]} 12. Bg5 {[%clk 0:02:26.7]} 12... Qe8
{[%clk 0:02:37.7]} 13. dxe5 {[%clk 0:02:15.7]} 13... dxe5 {[%clk 0:02:28.7]} 14.
Qd2 {[%clk 0:02:02]} 14... f6 {[%clk 0:02:18.1]} 15. Be3 {[%clk 0:01:55.6]}
15... Rd8 {[%clk 0:02:14.3]} 16. Qc2 {[%clk 0:01:53.9]} 16... Nb4 {[%clk
0:02:07.2]} 17. cxb4 {[%clk 0:01:53.8]} 17... Bxa4 {[%clk 0:02:07]} 18. Qxc7
{[%clk 0:01:53.1]} 18... Bc6 {[%clk 0:02:04.2]} 19. N1d2 {[%clk 0:01:38.9]}
19... Rf7 {[%clk 0:01:59]} 20. Qb6 {[%clk 0:01:38.3]} 20... Rfd7 {[%clk
0:01:45.8]} 21. Rac1 {[%clk 0:01:26.5]} 21... g5 {[%clk 0:01:30.8]} 22. Kh2
{[%clk 0:01:10]} 22... Nf4 {[%clk 0:01:11.7]} 23. Bxf4 {[%clk 0:01:09.9]} 23...
exf4 {[%clk 0:01:12.6]} 24. Nb3 {[%clk 0:00:45.9]} 24... h5 {[%clk 0:00:45]} 25.
e5 {[%clk 0:00:36.7]} 25... fxe5 {[%clk 0:00:40.5]} 26. Nxg5 {[%clk 0:00:32.9]}
26... Qg6 {[%clk 0:00:34]} 27. h4 {[%clk 0:00:22.6]} 27... Bf6 {[%clk
0:00:30.4]} 28. Nc5 {[%clk 0:00:20.6]} 28... Bxg5 {[%clk 0:00:26]} 29. Nxd7
{[%clk 0:00:19]} 29... Bxh4 {[%clk 0:00:23]} 30. Nxe5 {[%clk 0:00:18.8]} 30...
Qxg2# {[%clk 0:00:22.7]} 0-1